Cogmind - Beta 17.1 @@@ ROGUE MODE // 2026.09.14 @ 23:39:57 Player: 4R-ZE3 Result: Self-destructed Performance ------------- Evolutions (5) 2500 Regions Visited (11) 2200 Robots Destroyed (135) 675 Value Destroyed (5227) 5227 Prototype IDs (29) 580 Alien Tech Used (0) 0 Bonus (5458) 5458 TOTAL SCORE: 16640 Bonus ------- High Alert Combat Kills 192 Follower Combat Kills 1349 Met Warlord at Base 500 MAIN.C Attacked Warlord 500 Warlord Defense Kills 3282 Friendly Fire -365 Cogmind --------- Core Integrity 472/1000 Matter 282/300 Energy 325/325 System Corruption 0% Temperature Cool (0) Movement Walking (180) Ox1 Location -5/Warlord Parts ------- > --- POWER (2) -------- Antimatter Reactor > --- PROPULSION (6) --- Flexi-carbon Leg Flexi-carbon Leg Enhanced Biometal Leg Enhanced Biometal Leg Flying Cooled-Heavy Exoskeleton > --- UTILITY (6) ------ Armored Scrap Engine Advanced Heat Sink Advanced Heat Sink Huge Storage Unit Experimental Targeting Computer > --- WEAPON (3) ------- Hpw. Ballistic Helical Construct/C > --- INVENTORY (25) --- Antimatter Reactor Antigrav System Combat Gravmag System Advanced Cryofiber Web Structural Scanner Improved Sensor Array Improved Sensor Array Improved Kinecellerator Transmission Jammer Experimental Reaction Control System Hardened Medium Armor Plating Hardened Medium Armor Plating Improved Medium Armor Plating Improved Medium Armor Plating Thermal Barrier Plasma Cannon Plasma Cannon Plasma Cannon Vortex Driver Gauss Rifle Heavy Battle Rifle Mass Driver Peak State ------------ > --- POWER ------------ Antimatter-Neutrino Reactor > --- PROPULSION ------- Flying Cooled-Heavy Exoskeleton > --- UTILITY ---------- Armored Scrap Engine Huge Storage Unit Experimental Targeting Computer Experimental Armor Integrity Analyzer Experimental Reaction Control System > --- WEAPON ----------- Hpw. Ballistic Helical Construct/C > --- INVENTORY -------- Antimatter Reactor Antimatter Reactor Antigrav System Combat Gravmag System Advanced Cryofiber Web Advanced Heat Sink Improved Cooling System Structural Scanner Improved Sensor Array Improved Sensor Array Improved Kinecellerator Transmission Jammer Improved Reaction Control System Hardened Medium Armor Plating Hardened Medium Armor Plating Improved Medium Armor Plating Improved Medium Armor Plating Thermal Barrier Plasma Cannon Plasma Cannon Plasma Cannon Vortex Driver Gauss Rifle Heavy Battle Rifle Mass Driver [Rating: 120] Favorites ----------- Power Antimatter Reactor Engine Heavy Ion Engine Reactor Antimatter Reactor Propulsion Heavy Treads Treads Heavy Treads Leg Improved Carbon-fiber Leg Wheel Wheel Hover Unit Backup Propulsion III Flight Unit Constructs Utility Huge Storage Unit Device Armored Scrap Engine Storage Huge Storage Unit Processor Improved Signal Interpreter Protection Improved Medium Armor Plating Weapon Constructs Energy Gun Gatling Laser Energy Cannon Powered Cannon Ballistic Gun Light Assault Rifle Ballistic Cannon Constructs Launcher Grenade Launcher Build | -11 -10 -10 -8 -7 -7 -7 -7 -7 -5 -5 -5 ------- Run | Yrd Mat Sub Mat Fac Was Fac Sto Rec Fac Upp War Slots Evolved 10 | . . . 4 2 . . . . 4 . . Power 1 | . . . . . . . . . 1 . . Propulsion 4 | . . . 2 2 . . . . . . . Utility 4 | . . . 1 . . . . . 3 . . Weapon 1 | . . . 1 . . . . . . . . Parts Attached 86 | 6 12 1 13 18 5 2 2 3 8 1 15 Power 10 | 1 2 . 2 1 1 . 1 . . . 2 Engine 6 | 1 2 . 2 1 . . . . . . . Core . | . . . . . . . . . . . . Reactor 4 | . . . . . 1 . 1 . . . 2 Propulsion 25 | 2 1 . 4 8 3 . . 2 . . 5 Treads 9 | 2 1 . . 3 3 . . . . . . Leg 9 | . . . 4 1 . . . . . . 4 Wheel 6 | . . . . 4 . . . 2 . . . Hover . | . . . . . . . . . . . . Flight 1 | . . . . . . . . . . . 1 Utility 32 | 1 4 . 4 4 . 1 . 1 8 1 8 Device 16 | . 1 . 2 2 . . . 1 4 . 6 Storage 6 | 1 2 . 1 1 . 1 . . . . . Processor 7 | . 1 . . 1 . . . . 3 . 2 Hackware . | . . . . . . . . . . . . Protection 3 | . . . 1 . . . . . 1 1 . Artifact . | . . . . . . . . . . . . Weapon 19 | 2 5 1 3 5 1 1 1 . . . . Energy Gun 10 | 1 4 . 3 2 . . . . . . . Energy Cannon 2 | . . . . 1 . . 1 . . . . Ballistic Gun 4 | 1 . 1 . 2 . . . . . . . Ballistic Cannon 2 | . . . . . 1 1 . . . . . Launcher 1 | . 1 . . . . . . . . . . Special Weapon . | . . . . . . . . . . . . Impact Weapon . | . . . . . . . . . . . . Slashing Weapon . | . . . . . . . . . . . . Piercing Weapon . | . . . . . . . . . . . . Special Melee Weapon . | . . . . . . . . . . . . Unidentified Prototypes 11 | . . . 1 1 . 1 1 1 1 . 5 Parts Lost 22 | . 5 . 2 5 . . . . 3 1 6 Power 5 | . 1 . 1 . . . . . 2 . 1 Propulsion 8 | . 1 . . 3 . . . . . 1 3 Utility 3 | . 1 . . . . . . . 1 . 1 Weapon 6 | . 2 . 1 2 . . . . . . 1 Highest Loss Streak 2 | . 1 . 1 2 . . . . 1 1 2 To Critical Strikes . | . . . . . . . . . . . . Average Backups 19 | 1 10 14 19 23 24 25 25 19 18 16 20 Power 2 | . 2 3 2 2 2 2 2 1 2 1 1 Propulsion 4 | . 2 3 5 3 3 2 2 7 1 1 1 Utility 5 | . 1 2 3 7 5 4 3 4 6 7 11 Weapon 7 | . 2 5 7 10 14 17 17 4 8 7 7 Tool/Special . | . . . . . . . . . . . . Unused Backups 88 | . 1 2 1 4 6 . 1 52 4 . 17 Power 8 | . . 2 1 . 2 . . 2 . . 1 Propulsion 34 | . 1 . . . 1 . . 29 1 . 2 Utility 13 | . . . . 2 2 . 1 3 . . 5 Weapon 33 | . . . . 2 1 . . 18 3 . 9 Tool/Special . | . . . . . . . . . . . . Average Slot Usage (%) 62 | . 97 100 89 95 76 70 71 45 48 52 51 Engine 4 | . 14 14 8 9 9 7 7 1 1 . . Reactor 4 | . . . . . 4 7 7 6 3 8 4 Treads 10 | . 27 28 3 9 18 21 21 4 3 5 3 Leg 2 | . . . 29 18 2 . . . . . 2 Wheel 3 | . . . . 14 5 . . 5 1 . . Device 9 | . 7 14 10 7 7 7 7 7 15 14 13 Storage 7 | . 14 14 9 7 7 7 7 7 5 5 5 Processor 3 | . 3 . . 5 7 7 7 . 5 . 4 Energy Gun 6 | . 18 18 19 15 6 6 6 4 . . . Energy Cannon 2 | . . . . 2 7 7 7 1 4 . 1 Ballistic Gun 1 | . 7 9 4 1 . . . . . . . Ballistic Cannon 1 | . . . . . . . . 1 . 5 3 Peak Build Rating 120 | 6 8 10 36 54 83 82 83 89 100 99 120 Average Rating 60 | 4 7 8 27 44 73 80 80 54 90 91 99 On Entrance 51 | . 6 8 10 36 54 82 81 81 73 99 89 Avg Prop Armor Cover (%) 16 | . . . 8 19 15 . . 4 . . 11 Naked Turns . | . . . . . . . . . . . . Heaviest Build 140 | 11 29 30 104 111 119 118 118 118 134 140 134 Greatest Support 210 | 40 40 40 72 43 210 210 210 210 173 173 100 Greatest Overweight (x) 9 | . . . 1 9 5 . . 9 . 1 2 Average Overweight (x) 1 | . . . . 4 . . . 1 . . 1 Largest Inventory Capacity 25 | 8 15 15 25 25 25 25 25 25 25 25 25 Average Capacity 23 | 7 13 15 22 25 25 25 25 25 25 25 25 Most Carried 25 | 4 15 15 25 25 25 25 25 25 23 17 25 Average Carried 19 | 2 10 14 20 24 24 25 24 19 19 16 21 Final Capacity 25 | 8 15 15 25 25 25 25 25 25 25 25 25 Final Carried 25 | 4 15 15 25 25 25 25 25 18 15 17 22 Scrap Engine Consumption 119 | . . . . . . . . 81 16 3 19 Constructs Created 4 | . . . . . . . . 3 1 . . Constructs Modified 50 | . . . . . . . . 34 5 2 9 Class Distribution -------------------- 23% | Commander-Construct 21% | Construct 14% | Mutant 9% | Commander-Skirmisher 9% | Commander-Mutant 4% | Tank 3% | Scavenger-Skirmisher 3% | Gunner 3% | Scavenger-Tank Dominant Class ---------------- Mutant | -10/Materials Mutant | -10/Subcaves Gunner | -8/Materials Skirmisher | -7/Factory Scavenger-Tank | -7/Waste Scavenger-Skirmisher | -7/Factory Commander-Skirmisher | -7/Storage Commander-Construct | -7/Recycling Construct | -5/Factory Construct | -5/Upper Caves Construct | -5/Warlord Resources | -11 -10 -10 -8 -7 -7 -7 -7 -7 -5 -5 -5 ----------- Run | Yrd Mat Sub Mat Fac Was Fac Sto Rec Fac Upp War Matter Collected 2249 | 234 285 40 184 116 204 40 30 88 461 142 425 Remotely . | . . . . . . . . . . . . Salvage Created 6461 | . 599 60 411 757 313 27 390 711 1051 451 1691 Parts 321 | . 46 5 22 27 5 . 11 81 43 17 64 Haulers Intercepted 3 | . 2 . 1 . . . . . . . . Recyclers Shooed 2 | . . . 1 . . . . . 1 . . Parts Field Recycled . | . . . . . . . . . . . . Retrieved Matter . | . . . . . . . . . . . . Parts Self-Destructed 12 | . . . . . . . . . . 12 . Prevented 1 | . . . . . . . . . . 1 . Parts Restored . | . . . . . . . . . . . . Kills | -11 -10 -10 -8 -7 -7 -7 -7 -7 -5 -5 -5 ------- Run | Yrd Mat Sub Mat Fac Was Fac Sto Rec Fac Upp War Combat Hostiles Destroyed 101 | . 14 2 10 14 . 2 7 1 19 6 26 Melee 1 | . . . . . . . . . . . 1 Guns 30 | . 11 1 10 8 . . . . . . . Cannons 58 | . . . . 2 . 2 5 1 18 6 24 AOE 4 | . 3 1 . . . . . . . . . Classes Destroyed 21 | . 5 1 1 3 . 2 1 . 1 . 7 Builder 28 | . 3 . . 2 . . . 23 . . . Tunneler 2 | . 1 . . 1 . . . . . . . Hauler 3 | . 2 . 1 . . . . . . . . Recycler 1 | . . . . 1 . . . . . . . Watcher 2 | . . . . 1 . . . . 1 . . Swarmer 17 | . 3 . 3 4 . . . . 5 . 2 Saboteur 4 | . . . . . . . . . . . 4 Grunt 42 | . 11 . 4 5 . . 1 . 7 5 9 Brawler 2 | . . . . . . . 1 . . . 1 Protector 1 | . . . . . . . . . . . 1 Sentry 14 | . . . 3 4 . . 3 1 2 1 . Demolisher 5 | . . . . . . 1 2 . . . 2 Hunter 2 | . . . . . . . . . . . 2 Programmer 7 | . . . . 1 . . . . 5 . 1 Behemoth 1 | . . . . . . . . . . . 1 Striker 1 | . . . . . . . . . . . 1 Executioner 1 | . . . . . . . . . . . 1 Subdweller 2 | . . 2 . . . . . . . . . Assembled 1 | . . . . . . 1 . . . . . Surgeon 1 | . . . . . . . . . 1 . . Wasp 1 | . . . . . 1 . . . . . . Knight 1 | . . . . . . . . . . . 1 Best Kill Streak 16 | . 4 2 4 6 . 2 4 3 7 5 16 Combat Bots Only 16 | . 3 2 4 3 . 2 4 1 7 5 16 Max Kills in Single Turn 3 | . 2 1 1 3 1 1 1 2 2 1 2 Gunslinging . | . . . . . . . . . . . . Exploded 1 | . 1 1 . . . . . . . . . Melee 1 | . . . . . . . . . . . 1 Uniques/NPCs Destroyed . | . . . . . . . . . . . . Combat | -11 -10 -10 -8 -7 -7 -7 -7 -7 -5 -5 -5 -------- Run | Yrd Mat Sub Mat Fac Was Fac Sto Rec Fac Upp War Hostile Shots Fired 695 | . 57 7 49 174 . 39 73 1 120 44 131 Missed 221 | . 8 4 11 66 . 18 28 1 38 12 35 Hits 474 | . 49 3 38 108 . 21 45 . 82 32 96 Melee 3 | . . . . . . . . . . . 3 Projectile 471 | . 49 3 38 108 . 21 45 . 82 32 93 AOE 4 | . . . . . . 3 1 . . . . Critical Strikes 10 | . . 1 1 . . . . . 4 2 2 Part Disruptions 1 | . . . . . . . . . . . 1 Damage Taken 7233 | . 731 60 532 1142 . 296 389 . 1647 623 1813 Core 908 | . 115 . 65 151 . . 49 . 180 55 293 Absorbed by Shields . | . . . . . . . . . . . . Regen/Repaired (Parts) 1778 | . . . . . 300 161 114 5 535 50 613 Core Remaining (%) 78 | 100 . 54 88 . . . . 71 . . . Volleys Fired 398 | . 67 14 29 48 4 9 27 57 67 20 56 Largest 3 | . 2 2 3 3 1 1 2 2 1 1 1 Hottest 195 | . 100 100 165 195 40 40 120 120 64 64 82 Shots Fired 574 | . 121 18 82 110 4 9 28 59 67 20 56 Gun 363 | . 115 16 82 93 . . 1 56 . . . Cannon 203 | . . . . 17 4 9 27 3 67 20 56 Launcher 8 | . 6 2 . . . . . . . . . Special . | . . . . . . . . . . . . Kinetic 173 | . 49 8 19 10 . . . 10 9 20 48 Thermal 373 | . 57 8 63 100 4 9 28 49 55 . . Explosive 8 | . 6 2 . . . . . . . . . Electromagnetic 12 | . 9 . . . . . . . 3 . . Entropic 8 | . . . . . . . . . . . 8 Robot Hit Streak 17 | . 14 3 7 17 2 6 7 11 8 3 11 Robot Miss Streak 6 | . 4 1 4 4 2 1 2 6 4 3 2 Penetration Max 1 | . . . . 1 . . . . 1 1 1 Secondary Targets 2 | . . . . 2 . . . . . . . Max Gunslinging Chain 1 | . . . . 1 . . . . . . . Shots Hit Robots 360 | . 76 7 47 78 2 6 15 43 37 12 37 Core Hits 185 | . 39 4 23 40 1 2 5 29 17 6 19 Critical Kills 7 | . 1 . . 1 1 . 1 . 2 1 . Critical Parts Destroyed 12 | . . . . . . . . . 10 2 . Critical Strikes 42 | . 5 . 4 5 1 . 1 . 13 3 10 Burn 12 | . 4 . 4 4 . . . . . . . Meltdown 3 | . . . . 1 1 . 1 . . . . Destroy 17 | . 1 . . . . . . . 13 3 . Sunder 10 | . . . . . . . . . . . 10 Melee Attacks . | . . . . . . . . . . . . Impact . | . . . . . . . . . . . . Slashing . | . . . . . . . . . . . . Piercing . | . . . . . . . . . . . . Sneak Attacks . | . . . . . . . . . . . . Combat Hostiles . | . . . . . . . . . . . . Follow-up Attacks . | . . . . . . . . . . . . Damage Inflicted 18219 | . 1073 292 716 1799 153 295 791 712 4062 977 7349 Guns 3540 | . 762 63 716 1335 . . . 664 . . . Cannons 13956 | . . . . 281 153 295 791 48 4062 977 7349 Explosions 723 | . 311 229 . 183 . . . . . . . Melee . | . . . . . . . . . . . . Ramming . | . . . . . . . . . . . . Kinetic 8133 | . 262 . 214 164 . . . 96 502 977 5918 Thermal 7924 | . 466 63 502 1635 153 295 791 616 3403 . . Explosive 475 | . 246 229 . . . . . . . . . Electromagnetic 256 | . 99 . . . . . . . 157 . . Impact . | . . . . . . . . . . . . Slashing . | . . . . . . . . . . . . Piercing . | . . . . . . . . . . . . Entropic 1431 | . . . . . . . . . . . 1431 Highest Corruption 11 | . . . . . . . . . 11 11 11 Average Corruption 7 | . . . . . . . . . 5 11 11 Corruption Purged . | . . . . . . . . . . . . Corruption Blocked . | . . . . . . . . . . . . Effects 22 | . . . . . . . . . 11 9 2 Message Errors 2 | . . . . . . . . . 1 1 . Matter Fused 7 | . . . . . . . . . 3 4 . Heat Flow Errors 2 | . . . . . . . . . 2 . . Energy Discharges 2 | . . . . . . . . . . 2 . Parts Rejected 1 | . . . . . . . . . 1 . . Parts Fused 1 | . . . . . . . . . . . 1 Data Loss (minor) 3 | . . . . . . . . . 1 1 1 Data Loss (major) 4 | . . . . . . . . . 3 1 . Overload Shots . | . . . . . . . . . . . . Overflow Damage 1824 | . 17 . . 15 . 34 19 . 879 16 844 Projectiles 1807 | . . . . 15 . 34 19 . 879 16 844 Explosions 17 | . 17 . . . . . . . . . . Melee . | . . . . . . . . . . . . Knockbacks 19 | . . . . . . . . . 3 4 12 Impact . | . . . . . . . . . . . . Kinetic 18 | . . . . . . . . . 3 4 11 Secondary 1 | . . . . . . . . . . . 1 Self-Inflicted Damage 52 | . 52 . . . . . . . . . . Shots 1 | . 1 . . . . . . . . . . Rammed . | . . . . . . . . . . . . Targets Rammed . | . . . . . . . . . . . . Kicked . | . . . . . . . . . . . . Crushed . | . . . . . . . . . . . . Highest Temperature 342 | . 142 . 181 124 . 44 88 84 231 14 342 Average Temperature 45 | . 40 . 52 43 . 14 24 18 47 7 133 Received Heat Transfer 1835 | . 297 18 180 258 . 18 111 . 144 261 548 Siege Activations . | . . . . . . . . . . . . Martial Activations . | . . . . . . . . . . . . Shielding Activations . | . . . . . . . . . . . . Robots Disrupted . | . . . . . . . . . . . . Combat Hostiles . | . . . . . . . . . . . . Robots Corrupted 1 | . . . . . . . . . 1 . . Combat Hostiles 1 | . . . . . . . . . 1 . . Parts Fried 1 | . . . . . . . . . 1 . . Impact Corruptions . | . . . . . . . . . . . . Robots Melted 7 | . . . . 4 1 . 2 . . . . Combat Hostiles 6 | . . . . 4 . . 2 . . . . Parts Melted 32 | . 5 . 4 13 2 . 5 1 2 . . Heat Transferred 9621 | . 1364 185 1776 3347 . . . 1199 1750 . . Parts Sabotaged 3 | . . . . . . . . . . . 3 Parts Stolen . | . . . . . . . . . . . . Parts Stripped . | . . . . . . . . . . . . Power Chain Reactions 2 | . 2 . . . . . . . . . . Alert | -11 -10 -10 -8 -7 -7 -7 -7 -7 -5 -5 -5 ------- Run | Yrd Mat Sub Mat Fac Was Fac Sto Rec Fac Upp War Maximum Alert Level 4 | . . . . . . 1 4 2 1 . . Low Security (%) 74 | 100 100 . 100 100 100 57 28 71 46 . . Level 1 16 | . . . . . . 42 4 19 53 . . Level 2 4 | . . . . . . . 9 9 . . . Level 3 1 | . . . . . . . 20 . . . . Level 4 2 | . . . . . . . 37 . . . . Level 5 . | . . . . . . . . . . . . High Security . | . . . . . . . . . . . . Max Security . | . . . . . . . . . . . . Peak Influence 1400 | . 130 . 165 176 45 313 1400 569 330 . . Initial 535 | . . . . 51 45 . 138 535 200 . . Average 188 | . 40 . 95 74 3 152 759 205 208 . . Influence Increases 5439 | . 474 . 302 495 12 432 1715 415 854 190 550 Destroy 0b10 Robot/C 2640 | . 280 . 200 280 . 160 600 60 440 120 500 Destroy 0b10 Robot/NC 235 | . 30 . 5 25 . . 30 135 5 . 5 Destroy Leader 474 | . 54 . 52 82 . 40 144 . 92 10 . Allied During Kill 1099 | . . . . . . 200 749 81 69 . . Successful Hack 72 | . 17 . . 8 . . 6 27 14 . . Select Force Hacks 120 | . 30 . . . . . . 90 . . . Disable Machine 180 | . 15 . 15 45 . . 90 . 15 . . Destroy Structure 289 | . 48 . . 25 12 32 96 22 54 . . Advance Influence 150 | . . . . . . . . . 150 . . Lose Combat Pursuer 180 | . . . 30 30 . . . . 15 60 45 Influence Decreases 5103 | . 473 1 188 478 143 127 645 1670 670 244 464 Entered New Map 1591 | . . 1 . 63 86 . 167 840 70 114 250 Time Decay 2930 | . 423 . 168 365 45 127 318 770 440 120 154 Lost Part 220 | . 50 . 20 50 . . . . 30 10 60 Lost Ally 362 | . . . . . 12 . 160 60 130 . . Squads Dispatched 17 | . 1 . 2 2 . 1 6 . 5 . . Investigation 3 | . 1 . 1 . . . . . 1 . . Extermination 5 | . . . . 1 . . 2 . 2 . . Reinforcement 6 | . . . . 1 . . 3 . 2 . . Assault 1 | . . . . . . . 1 . . . . Garrison 2 | . . . 1 . . 1 . . . . . Intercept . | . . . . . . . . . . . . Searches Triggered . | . . . . . . . . . . . . Construction Impeded . | . . . . . . . . . . . . Haulers Reinforced 1 | . . . . . . . 1 . . . . Active Scanning Responses . | . . . . . . . . . . . . Cargo Convoy Interrupts . | . . . . . . . . . . . . Stealth | -11 -10 -10 -8 -7 -7 -7 -7 -7 -5 -5 -5 --------- Run | Yrd Mat Sub Mat Fac Was Fac Sto Rec Fac Upp War Distress Signals 10 | . 3 . 1 1 . . 1 1 2 . 1 Communications Jammed . | . . . . . . . . . . . . Distress Signals . | . . . . . . . . . . . . Times Spotted 203 | . 26 2 16 19 1 9 22 5 34 9 60 Peak Tracking Total 12 | . 3 2 3 5 1 5 6 1 8 5 12 Tactical Retreats 6 | . . . 1 1 . . . . 1 1 2 Traps | -11 -10 -10 -8 -7 -7 -7 -7 -7 -5 -5 -5 ------- Run | Yrd Mat Sub Mat Fac Was Fac Sto Rec Fac Upp War Traps Triggered 13 | . 1 . 1 5 . 2 . . 3 . 1 Indirectly . | . . . . . . . . . . . . Trap Hack Attempts . | . . . . . . . . . . . . Triggered . | . . . . . . . . . . . . Disarmed . | . . . . . . . . . . . . Reprogrammed . | . . . . . . . . . . . . Reused . | . . . . . . . . . . . . Traps Extracted . | . . . . . . . . . . . . Installed . | . . . . . . . . . . . . Triggered . | . . . . . . . . . . . . Machines | -11 -10 -10 -8 -7 -7 -7 -7 -7 -5 -5 -5 ---------- Run | Yrd Mat Sub Mat Fac Was Fac Sto Rec Fac Upp War Machines Disabled 15 | . 1 1 1 3 . . 6 . 1 . 2 Max in Single Turn 3 | . 1 1 1 3 . . 1 . 1 . 1 Garrison Access 2 | . . . . . . 1 . . 1 . . Machines Repaired . | . . . . . . . . . . . . Machines Dismantled . | . . . . . . . . . . . . Machines Sabotaged . | . . . . . . . . . . . . Overloaded Fab Kills . | . . . . . . . . . . . . Hacking | -11 -10 -10 -8 -7 -7 -7 -7 -7 -5 -5 -5 --------- Run | Yrd Mat Sub Mat Fac Was Fac Sto Rec Fac Upp War Machines Accessed 27 | . 4 1 1 1 . 3 5 7 4 . 1 Terminals 14 | . 3 . . 1 . 1 5 2 2 . . Fabricators 1 | . . . . . . . . . 1 . . Repair Stations . | . . . . . . . . . . . . Recycling Units 6 | . 1 . 1 . . . . 4 . . . Scanalyzers 1 | . . . . . . 1 . . . . . Garrison Access 2 | . . . . . . 1 . . 1 . . Total Hacks 51 | . 9 1 1 4 . 7 10 12 6 . 1 Successful 31 | . 5 1 . 2 . 6 4 10 2 . 1 Failed 19 | . 3 . 1 2 . 1 6 2 4 . . Catastrophic 2 | . . . 1 . . . . . 1 . . Database Lockouts 1 | . 1 . . . . . . . . . . Manual 36 | . 9 . 1 4 . 3 7 9 3 . . Terminals 32 | . 8 . . 4 . 3 10 4 3 . . Fabricators 2 | . . . . . . . . . 2 . . Repair Stations . | . . . . . . . . . . . . Recycling Units 8 | . 1 . 1 . . . . 6 . . . Scanalyzers 3 | . . . . . . 3 . . . . . Garrison Access 2 | . . . . . . 1 . . 1 . . Terminal Hacks 12 | . 3 1 . 1 . 1 2 3 . . 1 Robot Analysis 1 | . 1 . . . . . . . . . . Open Door 3 | . . . . . . . 2 . . . 1 Branch Access Points 2 | . . . . 1 . 1 . . . . . Recycling Unit Index 1 | . 1 . . . . . . . . . . Zone Layout 2 | . 1 . . . . . . 1 . . . Proto ID Catalog 1 | . . 1 . . . . . . . . . Release Object 2 | . . . . . . . . 2 . . . Fabricator Hacks . | . . . . . . . . . . . . Repair Station Hacks . | . . . . . . . . . . . . Recycling Unit Hacks . | . . . . . . . . . . . . Scanalyzer 3 | . . . . . . 3 . . . . . Retrieve Study 3 | . . . . . . 3 . . . . . Garrison Access Hacks 2 | . . . . . . 1 . . 1 . . Seal Access 2 | . . . . . . 1 . . 1 . . Unauthorized Hacks 14 | . 2 . . 1 . 1 2 7 1 . . Terminals 8 | . 1 . . 1 . 1 2 2 1 . . Botnet 8 | . 1 . . 1 . 1 2 2 1 . . Fabricators . | . . . . . . . . . . . . Repair Stations . | . . . . . . . . . . . . Recycling Units 6 | . 1 . . . . . . 5 . . . Reject 1 | . . . . . . . . 1 . . . Mask 1 | . . . . . . . . 1 . . . Tunnel 4 | . 1 . . . . . . 3 . . . Scanalyzers . | . . . . . . . . . . . . Garrison Access . | . . . . . . . . . . . . Data Cores Recovered . | . . . . . . . . . . . . Used . | . . . . . . . . . . . . Hacking Detections 14 | . 2 . 1 1 . . 6 1 3 . . Full Trace Events . | . . . . . . . . . . . . Feedback Events . | . . . . . . . . . . . . Feedback Blocked . | . . . . . . . . . . . . Robot Schematics Acquired . | . . . . . . . . . . . . Robots Built . | . . . . . . . . . . . . Authchips . | . . . . . . . . . . . . Time . | . . . . . . . . . . . . Total Robot Build Rating . | . . . . . . . . . . . . Part Schematics Acquired . | . . . . . . . . . . . . Parts Built . | . . . . . . . . . . . . Authchips . | . . . . . . . . . . . . Time . | . . . . . . . . . . . . Total Part Build Rating . | . . . . . . . . . . . . Part Studies Acquired 3 | . . . . . . 3 . . . . . Parts Repaired . | . . . . . . . . . . . . Time . | . . . . . . . . . . . . Parts Recycled . | . . . . . . . . . . . . Recycled Matter . | . . . . . . . . . . . . Retrieved Matter . | . . . . . . . . . . . . Retrieved Components . | . . . . . . . . . . . . Parts Scanalyzed . | . . . . . . . . . . . . Part Schematics Acquired . | . . . . . . . . . . . . Parts Damaged . | . . . . . . . . . . . . Bothacking | -11 -10 -10 -8 -7 -7 -7 -7 -7 -5 -5 -5 ------------ Run | Yrd Mat Sub Mat Fac Was Fac Sto Rec Fac Upp War Used RIF Installer . | . . . . . . . . . . . . Robots Hacked . | . . . . . . . . . . . . Non-combat . | . . . . . . . . . . . . Combat . | . . . . . . . . . . . . Robot Hacks Applied . | . . . . . . . . . . . . Relay Couplers Released . | . . . . . . . . . . . . Fabnet Peak Effective % . | . . . . . . . . . . . . Robots Rewired . | . . . . . . . . . . . . Allies Hacked 3 | . . . . . . . 1 . 2 . . Hacks Repelled . | . . . . . . . . . . . . Allies | -11 -10 -10 -8 -7 -7 -7 -7 -7 -5 -5 -5 -------- Run | Yrd Mat Sub Mat Fac Was Fac Sto Rec Fac Upp War Total Allies 30 | . . . . . 20 . 10 . . . . Largest Group 25 | . . . . . 20 18 25 11 8 . . Highest-Rated Group 609 | . . . . . 535 507 609 257 165 . . Highest-Rated Ally 35 | . . . . . 35 35 35 35 31 . . Total Orders 2 | . . . . . . . . 2 . . . STAY 1 | . . . . . . . . 1 . . . FOLLOW 1 | . . . . . . . . 1 . . . Ally Attacks 303 | . . . . . 20 37 136 62 48 . . Total Damage 6811 | . . . . . 770 959 3609 911 562 . . Kills 52 | . . . . . 1 8 33 7 3 . . Allies Corrupted 3 | . . . . . . . 1 . 2 . . Allies Melted 2 | . . . . . 1 . 1 . . . . Intel | -11 -10 -10 -8 -7 -7 -7 -7 -7 -5 -5 -5 ------- Run | Yrd Mat Sub Mat Fac Was Fac Sto Rec Fac Upp War Active Infowar (turns) 4202 | . . . . 396 . 433 715 632 880 127 1019 Sensors 2589 | . . . . 396 . 433 715 632 413 . . Structural 1954 | . . . . . . . . . 808 127 1019 Robot Analysis Total 1 | . 1 . . . . . . . . . . Derelict Logs Recovered . | . . . . . . . . . . . . Drone Launches . | . . . . . . . . . . . . Drone Recoveries . | . . . . . . . . . . . . Exploration | -11 -10 -10 -8 -7 -7 -7 -7 -7 -5 -5 -5 ------------- Run | Yrd Mat Sub Mat Fac Was Fac Sto Rec Fac Upp War Turns Passed 13660 | 72 1445 413 407 916 708 433 715 5144 1088 246 2073 Spaces Moved 6121 | 39 603 234 141 454 374 251 387 1897 692 102 947 Core 2 | 2 . . . . . . . . . . . Treads 3815 | 37 603 234 33 4 339 251 387 627 485 102 713 Legs 250 | . . . 108 . . . . . . . 142 Wheels 1824 | . . . . 450 35 . . 1132 207 . . Hover 125 | . . . . . . . . 125 . . . Flight 105 | . . . . . . . . 13 . . 92 Fastest Speed 50 | 50 160 160 120 128 160 160 160 72 122 122 176 Average Speed 157 | 154 160 160 181 155 173 160 160 145 122 168 194 Slowest Speed 347 | 160 160 160 190 320 240 160 160 220 122 188 347 Overloaded Moves . | . . . . . . . . . . . . Propulsion Burnouts . | . . . . . . . . . . . . Robots Hopped . | . . . . . . . . . . . . Potential Cave-ins . | . . . . . . . . . . . . Cave-ins Triggered . | . . . . . . . . . . . . Exploration Rate (%) 44 | 3 92 12 16 15 92 11 78 98 21 13 85 Regions Visited 11 Branch Regions 5 Pre-discovered Areas 5 | . 1 . . . . . 1 3 . . . Known Exits Taken 3 | . . . . . . 1 1 1 . . . Unknown Exits Taken 6 | 1 1 1 1 . . . . . 1 1 . Scrap Searched . | . . . . . . . . . . . . Spaces Dug 27 | . . . . 7 . 1 6 2 11 . . Terrain Destroyed 204 | . 44 10 . 29 1 2 9 2 23 20 64 Melee . | . . . . . . . . . . . . Projectile 103 | . . . . 12 1 2 9 2 23 20 34 AOE 101 | . 44 10 . 17 . . . . . . 30 Terrain Rammed . | . . . . . . . . . . . . Walls Destroyed . | . . . . . . . . . . . . Machines Disabled . | . . . . . . . . . . . . Actions | -11 -10 -10 -8 -7 -7 -7 -7 -7 -5 -5 -5 --------- Run | Yrd Mat Sub Mat Fac Was Fac Sto Rec Fac Upp War Total 9638 | 48 968 255 229 583 434 275 461 4251 862 153 1119 Wait 2693 | . 263 . 23 14 25 9 37 2165 53 28 76 Move 6111 | 38 602 233 140 454 373 250 386 1896 691 101 947 Hop . | . . . . . . . . . . . . Pick Up 132 | 4 14 2 14 13 8 . 3 51 11 2 10 Fast Attach 57 | 6 6 . 8 6 6 2 2 3 5 . 13 Attach 26 | . 3 . 4 8 . . . . 7 . 4 Detach 13 | . . . 3 4 . . . 1 2 . 3 Swap 33 | . 8 3 1 9 . 2 1 . 7 2 . Drop 152 | . 5 3 7 13 17 3 5 78 11 . 10 Fire 398 | . 67 14 29 48 4 9 27 57 67 20 56 Melee . | . . . . . . . . . . . . Ram . | . . . . . . . . . . . . Kick . | . . . . . . . . . . . . Crush . | . . . . . . . . . . . . Escape Stasis 22 | . . . . 14 . . . . 8 . . Rewire 1 | . . . . . 1 . . . . . . Trap . | . . . . . . . . . . . . Miscellaneous . | . . . . . . . . . . . . Route ------- -11/Scrapyard -10/Materials (discovered 5 exits: [*Mat x3] / [*Min] / *Sub) -10/Subcaves -8/Materials -7/Factory (discovered 5 exits: *Fac / Sto x2 / Low x2) -7/Waste -7/Factory (discovered 4 exits: *Fac / *Sto / Low x2) -7/Storage (discovered 2 exits: *Fac / *Rec) -7/Recycling -5/Factory (discovered 2 exits: *Fac / [*Upp]) -5/Upper Caves -5/Warlord History --------- Turn | Location | Event 28 | -11/Scrapyard | Discovered new exit (range 15) 73 | -11/Scrapyard | Entered Materials 314 | -10/Materials | Build established: Mutant 357 | -10/Materials | Discovered new exit (range 12) 471 | -10/Materials | Discovered new exit (range 16) 479 | -10/Materials | Central database locked down 762 | -10/Materials | Discovered new exit (range 16) 902 | -10/Materials | Discovered new exit (range 16) 1501 | -10/Materials | Discovered new exit (range 4) 1518 | -10/Materials | Entered Subcaves 1519 | -10/Subcaves | Approached by a straggling Scientist 1542 | -10/Subcaves | Discovered new exit (range 16) 1567 | -10/Subcaves | Shifting Twisted Machinery released Riot Gun 1569 | -10/Subcaves | Shifting Twisted Machinery released Sub. Machine Gun 1725 | -10/Subcaves | A swath of the cavern ceiling suddenly collapsed 1824 | -10/Subcaves | Visited 4L-MR0's lab 1842 | -10/Subcaves | Found Powered Cannon 1931 | -10/Subcaves | Entered Materials 1931 | -8/Materials | Evolved 4 slots: Propulsion x2, Utility x1, Weapon x1 2236 | -8/Materials | Garrison activated, responded to threat 2317 | -8/Materials | Discovered new exit (range 3) 2338 | -8/Materials | Entered Factory 2338 | -7/Factory | Evolved 2 slots: Propulsion x2 2388 | -7/Factory | Identified exit to Storage 2388 | -7/Factory | Identified exit to Lower Caves 2554 | -7/Factory | Build established: Tank 2863 | -7/Factory | Attached Powered Cannon, gained temporary slot: Power 3139 | -7/Factory | Build established: Skirmisher 3201 | -7/Factory | Discovered new exit (range 8) 3254 | -7/Factory | Sucked down chute 3254 | -7/Factory | Entered Waste 3255 | -7/Waste | Joined by Warlord forces that had cleared the area 3529 | -7/Waste | Discovered new exit (range 11) 3614 | -7/Waste | A Compactor rumbled back to life 3614 | -7/Waste | Spotted C-40 Crusher 3620 | -7/Waste | Allies destroyed C-40 Crusher 3853 | -7/Waste | Build established: Scavenger-Tank 3941 | -7/Waste | Identified exit to Factory 3962 | -7/Waste | Entered Factory 3962 | -7/Factory | Accompanied by 18 allies 4114 | -7/Factory | Assembled infested ambush trap array 4124 | -7/Factory | Garrison activated, responded to threat 4155 | -7/Factory | Lost 3 allies 4264 | -7/Factory | Build established: Scavenger-Skirmisher 4318 | -7/Factory | Discovered new exit (range 5) 4323 | -7/Factory | Identified exit to Factory 4395 | -7/Factory | Entered Storage 4395 | -7/Storage | Accompanied by 15 allies 4453 | -7/Storage | Assisted by bots powering up and referring to "LRC-V3" 4571 | -7/Storage | Discovered exit to Factory (range 14) 4714 | -7/Storage | Lost 5 allies 4747 | -7/Storage | Build established: Commander-Skirmisher 4795 | -7/Storage | First assault squad dispatched 4882 | -7/Storage | Lost 6 allies 4976 | -7/Storage | Learned location of Armory (-4) 5073 | -7/Storage | Used back door to open Recycling access 5073 | -7/Storage | Discovered new exit (range 5) 5078 | -7/Storage | Identified exit to Recycling 5110 | -7/Storage | Entered Recycling 5110 | -7/Recycling | Accompanied by 11 allies 5620 | -7/Recycling | Discovered new exit (range 15) 5658 | -7/Recycling | Identified exit to Factory 5740 | -7/Recycling | Entered Scraplab 5745 | -7/Recycling | Found Prototype Device 5745 | -7/Recycling | Identified Scrap Engine 6040 | -7/Recycling | Build established: Commander-Tank 6416 | -7/Recycling | Build established: Commander-Mutant 7703 | -7/Recycling | Build established: Commander-Construct 10254 | -7/Recycling | Entered Factory 10254 | -5/Factory | Accompanied by 8 allies 10254 | -5/Factory | Evolved 4 slots: Power x1, Utility x3 10447 | -5/Factory | Discovered new exit (range 7) 10453 | -5/Factory | Identified exit to Factory 10618 | -5/Factory | Lost 3 allies 10880 | -5/Factory | Build established: Construct 10952 | -5/Factory | Lost 4 allies 10985 | -5/Factory | Destroyed 7 combat bots 11079 | -5/Factory | Discovered new exit (range 10) 11339 | -5/Factory | System corruption reached 10% 11342 | -5/Factory | Entered Upper Caves 11353 | -5/Upper Caves | Attracted the attention of an 0b10 checkpoint 11570 | -5/Upper Caves | A Derelict revealed a hidden shortcut to "reach the base" 11588 | -5/Upper Caves | Entered Warlord 11651 | -5/Warlord | System corruption cleaned by Quarantine Array 12406 | -5/Warlord | Visited the Vortex Lab 12416 | -5/Warlord | Warlord's base attacked by MAIN.C 12428 | -5/Warlord | Found Prototype Energy Cannon 12523 | -5/Warlord | Met Warlord 12621 | -5/Warlord | Found Prototype Device 12621 | -5/Warlord | Identified Thermal Barrier 12627 | -5/Warlord | Found Prototype Processor 12627 | -5/Warlord | Identified Exp. Armor Integrity Analyzer 12636 | -5/Warlord | Found Prototype Processor 12636 | -5/Warlord | Identified Exp. Targeting Computer 12766 | -5/Warlord | Warlord forces counterattacked 12818 | -5/Warlord | Spotted Executioner 12820 | -5/Warlord | Spotted Striker 12825 | -5/Warlord | Destroyed Striker 12926 | -5/Warlord | Lost 14 allies 13091 | -5/Warlord | Warlord base infiltrated, sounded retreat 13383 | -5/Warlord | Spotted Executioner 13394 | -5/Warlord | Destroyed Executioner 13428 | -5/Warlord | Destroyed 16 combat bots 13528 | -5/Warlord | Spotted VB-LY5(K) 13540 | -5/Warlord | Destroyed VB-LY5(K) 13607 | -5/Warlord | Spotted B-86 Titan 13618 | -5/Warlord | Destroyed B-86 Titan 13651 | -5/Warlord | Core integrity fell below 50% 13661 | -5/Warlord | Self-destructed Last Messages --------------- (Sunder). 13656_ B-74 Champion Med. Treads ripped off. 13656_ B-74 Champion destroyed. 13656_ P-70 Sage suffers critical hit (Sunder). 13656_ P-70 Sage Mic. Fission Core ripped off. 13656_ P-70 Sage Imp. Remote Datajack ripped off. 13656_ P-70 Sage destroyed. 13658_ Hpw. Ballistic Helical Construct/C destroyed. 13658_ Hpw. Ballistic Helical Construct/C core remains intact and functional. 13658_ L-41 Fighter suffers critical hit (Sunder). 13658_ L-41 Fighter Carbon-fiber Leg ripped off. 13658_ L-41 Fighter knocked back. 13660_ Flying Cooled-Heavy Exoskeleton destroyed. 13660_ Flying Cooled-Heavy Exoskeleton core remains intact and functional. Map ----- +----------------------------------------------------+ | ??????????????????????????????????????? | | ??????????????????????????????????????? | | ??????????????????????????????????????? | | ##??????????????????????????????????? | | ##??????????????????????????????????? | | ##??????????????????????????????????? | | ##??????????????????????????????????? | | ##??????????????????????????????????? | | ####?????????????????????####?????????? | | ####????????????????????#####?????????? | | ???????????????????? ??### ?????###?? | | ????????????????????? ??????##### | | ?????????????????????? ### ??????= ### | | ?????????????????????? ##???! # | | ????"?????????????????## ##??%? #? | | ?##""##???????????????## ###=? #? | | ?##""##???????????????### ##!? ### | | ###""######????????????### %#; # | | ###""#################??### !#;[[ # | | "" " ###########???### x!*=[%!### | | ""=! ! """""" ########p[[=!==; # | | ""=%*!=/ !%%*!% ###### ]%]%i=[=; #? | | ^ ^[[==!%%%=*= *! ### ##!!pb/%!;##?? | | % =%%%==%=!%*%]%!% =*/%=[%*[* "#?? | | ^= [^[%**%!![!!!%%!% %=l%!#### ##?? | | ^ %^%[%%[%[%===!=! ####*@%*##### ###? | | ==!!* = !!%!* #### !%=#### ###? | | "" ![ """!!! ! #####**!##### ##? | | "" "######## ###?##=[#### # ##? | | ###""############# ###?##*!### ##? | | ###""######??????###???# ### ##? | | ?##""##???????????????? ### ###? | | ?##""##???????????????? ;### ###? | | ??#""???????????????## ; ### ###?? | | ????????????????????## = ;##### ###?? | | ????????????????????## %;;??### ###?? | | ?????????????????????# !; ???### ###?? | | ?????????????????????# ;#??#### ##?? | | ?????????????????????? ???### ##?? | | ???????????????????????? ???## ^##?? | | ???????????????????????? ???## ##?? | | ????????????????????????????## ##?? | | ????????????????????????????## ##?? | | ???????????????????????????? ## ###?? | | ???????????????????????????? ###?? | | ????????????????????????????# ###??? | | ????????????????????????????########??? | | ????????????????????????????#######???? | | ??????????????????????????????????????? | | ??????????????????????????????????????? | +----------------------------------------------------+ Best States ------------- Heat Dissipation 94 Energy Generation 36 Energy Capacity 646 Matter Stores 300 Matter Capacity 300 Sight Range 16 Robot Scan Range 15 Terrain Scan Density 10 Armor Coverage 450 Evasion (%) 45 Targeting Accuracy 12 Core Analysis 6 Armor Integrity Analysis 50 Recoil Reduction 6 Item Schematics ----------------- None Robot Schematics ------------------ None Fabricated ------------ Nothing Repaired ---------- Nothing Studied --------- Gatling Laser | -7/Factory | Hacked Gauss Rifle | -7/Factory | Hacked Hpw. Shotgun | -7/Factory | Hacked Alien Tech Used ----------------- None Achievements -------------- None Challenges ------------ None Game ------ Seed GravmagDirectedGenerator Manual? 0 Play Time 01:19:13 Cumulative 408.5 hours Start 2026.09.14 @ 22:19:40 End 2026.09.14 @ 23:39:57 Sessions 1 Manual Loads 0 Difficulty Rogue Special Mode None Game No. 359 Rogue 305 Adventurer 54 Explorer 0 Win Type - Total 24 Types 15/1/1/1/1/1/1/1/1/1 Lore% 83 Gallery% 71 Achievement% 71 Wizard Run 0 Options --------- Layout 1 ASCII 0 Keyboard 0 Movement Mouse Keybinds 1 Fullscreen 2 Font 32/Tamsyn Map View 50x35 Zoom Use 0% Tactical HUD 1 Map Filters NONE Filters NONE Steam 1 RUN: b2ea9591-de7c-4c39-a02f-05d0e7e2f718